Cogmind - Beta 17.1 @@@ ROGUE MODE // 2026.08.26 @ 21:30:00 Player: WetterLettuce Result: Destroyed by G-34 Mercenary with Small Laser Performance ------------- Evolutions (0) 0 Regions Visited (2) 400 Robots Destroyed (20) 100 Value Destroyed (433) 433 Prototype IDs (1) 20 Alien Tech Used (0) 0 Bonus (6550) 6550 TOTAL SCORE: 7503 Bonus ------- Prayed to X0-1V1 5000 Major X0-1V1 Interference 1550 Cogmind --------- Core Integrity 0/150 Matter 266/300 Energy 328/1200 System Corruption 0% Temperature Cool (6) Movement Rolling (90) Location -10/Mines Parts ------- > --- POWER (1) -------- (None) > --- PROPULSION (2) --- Armored Wheel Armored Wheel > --- UTILITY (3) ------ Small Storage Unit X0-1V1's Piety Tracker > --- WEAPON (1) ------- Light Assault Rifle > --- INVENTORY (9) ---- Aluminum Leg Wheel Armored Wheel Armored Wheel Heat Sink Light Assault Rifle Mace Peak State ------------ > --- POWER ------------ Light Ion Engine > --- PROPULSION ------- Armored Wheel Armored Wheel > --- UTILITY ---------- Small Storage Unit X0-1V1's Piety Tracker > --- WEAPON ----------- Light Assault Rifle Light Assault Rifle > --- INVENTORY -------- Aluminum Leg Wheel Armored Wheel Armored Wheel Heat Sink Light Assault Rifle Mace [Rating: 22] Favorites ----------- Power Ion Engine Engine Ion Engine Propulsion Light Treads Treads Light Treads Wheel Armored Wheel Utility Small Storage Unit Device Heat Sink Storage Small Storage Unit Weapon Small Laser Energy Gun Small Laser Ballistic Gun Light Assault Rifle Build | -11 -10 -10 ------- Run | Yrd Mat Min Slots Evolved . | . . . Power . | . . . Propulsion . | . . . Utility . | . . . Weapon . | . . . Parts Attached 14 | 6 8 . Power 2 | 1 1 . Engine 2 | 1 1 . Core . | . . . Reactor . | . . . Propulsion 4 | 2 2 . Treads 2 | 2 . . Leg . | . . . Wheel 2 | . 2 . Hover . | . . . Flight . | . . . Utility 3 | 1 2 . Device 2 | . 2 . Storage 1 | 1 . . Processor . | . . . Hackware . | . . . Protection . | . . . Artifact . | . . . Weapon 5 | 2 3 . Energy Gun 3 | 2 1 . Energy Cannon . | . . . Ballistic Gun 2 | . 2 . Ballistic Cannon . | . . . Launcher . | . . . Special Weapon . | . . . Impact Weapon . | . . . Slashing Weapon . | . . . Piercing Weapon . | . . . Special Melee Weapon . | . . . Unidentified Prototypes 1 | . 1 . Parts Lost 7 | . 6 1 Power 2 | . 1 1 Propulsion 2 | . 2 . Utility . | . . . Weapon 3 | . 3 . Highest Loss Streak 4 | . 4 1 To Critical Strikes . | . . . Average Backups 6 | 2 6 6 Power . | . . . Propulsion 4 | 1 5 4 Utility . | . . 1 Weapon . | . . 1 Tool/Special . | . . . Unused Backups 7 | . 1 6 Power . | . . . Propulsion 5 | . 1 4 Utility . | . . . Weapon 2 | . . 2 Tool/Special . | . . . Average Slot Usage (%) 87 | . 87 91 Engine 12 | . 13 8 Treads 17 | . 18 . Wheel 10 | . 8 28 Device 4 | . 3 14 Storage 14 | . 14 14 Energy Gun 19 | . 21 . Ballistic Gun 7 | . 6 26 Peak Build Rating 22 | 6 21 22 Average Rating 8 | 5 8 21 On Entrance 9 | . 6 21 Avg Prop Armor Cover (%) . | . . . Naked Turns . | . . . Heaviest Build 13 | 13 13 11 Greatest Support 40 | 40 40 24 Greatest Overweight (x) 2 | . 2 . Average Overweight (x) . | . . . Largest Inventory Capacity 9 | 8 8 9 Average Capacity 7 | 7 8 8 Most Carried 8 | 5 8 7 Average Carried 6 | 2 6 6 Final Capacity 9 | 8 8 9 Final Carried 7 | 5 6 7 Class Distribution -------------------- 100% | Mutant Dominant Class ---------------- Mutant | -10/Materials Mutant | -10/Mines Resources | -11 -10 -10 ----------- Run | Yrd Mat Min Matter Collected 376 | 187 189 . Remotely . | . . . Salvage Created 577 | . 544 33 Parts 39 | . 31 8 Haulers Intercepted . | . . . Recyclers Shooed . | . . . Parts Field Recycled . | . . . Retrieved Matter . | . . . Parts Self-Destructed . | . . . Prevented . | . . . Parts Restored . | . . . Kills | -11 -10 -10 ------- Run | Yrd Mat Min Combat Hostiles Destroyed 17 | . 14 3 Guns 15 | . 14 1 AOE 1 | . . 1 Classes Destroyed 4 | . 4 . Recycler 1 | . 1 . Watcher 2 | . 2 . Swarmer 9 | . 6 3 Grunt 8 | . 8 . Best Kill Streak 8 | . 8 3 Combat Bots Only 7 | . 7 3 Max Kills in Single Turn 2 | . 2 1 Gunslinging . | . . . Exploded 1 | . . 1 Melee . | . . . Uniques/NPCs Destroyed . | . . . Combat | -11 -10 -10 -------- Run | Yrd Mat Min Hostile Shots Fired 128 | . 95 33 Missed 34 | . 27 7 Hits 94 | . 68 26 Projectile 94 | . 68 26 Critical Strikes 1 | . 1 . Damage Taken 994 | . 733 261 Core 291 | . 183 108 Absorbed by Shields . | . . . Core Remaining (%) 100 | 100 . . Volleys Fired 65 | . 54 11 Largest 2 | . 2 2 Hottest 80 | . 80 40 Shots Fired 113 | . 95 18 Gun 113 | . 95 18 Cannon . | . . . Launcher . | . . . Special . | . . . Kinetic 22 | . 4 18 Thermal 58 | . 58 . Explosive . | . . . Electromagnetic 33 | . 33 . Robot Hit Streak 19 | . 19 3 Robot Miss Streak 7 | . 7 7 Penetration Max . | . . . Secondary Targets . | . . . Shots Hit Robots 67 | . 61 6 Core Hits 30 | . 27 3 Critical Kills . | . . . Critical Parts Destroyed . | . . . Critical Strikes 2 | . 2 . Corrupt 2 | . 2 . Melee Attacks . | . . . Impact . | . . . Slashing . | . . . Piercing . | . . . Sneak Attacks . | . . . Combat Hostiles . | . . . Follow-up Attacks . | . . . Damage Inflicted 1054 | . 876 178 Guns 827 | . 775 52 Cannons . | . . . Explosions 227 | . 101 126 Melee . | . . . Ramming . | . . . Kinetic 76 | . 24 52 Thermal 587 | . 587 . Explosive 126 | . . 126 Electromagnetic 265 | . 265 . Impact . | . . . Slashing . | . . . Piercing . | . . . Highest Corruption 2 | . 2 2 Average Corruption 2 | . 2 2 Corruption Purged . | . . . Corruption Blocked . | . . . Effects 10 | . 9 1 Message Errors 3 | . 3 . Matter Fused 3 | . 3 . Energy Discharges 2 | . 1 1 Data Loss (minor) 1 | . 1 . Misfires 1 | . 1 . Overload Shots . | . . . Overflow Damage . | . . . Projectiles . | . . . Explosions . | . . . Melee . | . . . Knockbacks . | . . . Impact . | . . . Kinetic . | . . . Secondary . | . . . Self-Inflicted Damage 77 | . 36 41 Shots 2 | . 1 1 Rammed . | . . . Targets Rammed . | . . . Kicked . | . . . Crushed . | . . . Highest Temperature 422 | . 422 68 Average Temperature 154 | . 162 37 Received Heat Transfer 288 | . 264 24 Effects 14 | . 14 . Energy Bleed 1 | . 1 . Interference 4 | . 4 . Matter Decay 1 | . 1 . Damage (major) 8 | . 8 . Siege Activations . | . . . Martial Activations . | . . . Shielding Activations . | . . . Robots Disrupted . | . . . Combat Hostiles . | . . . Robots Corrupted . | . . . Combat Hostiles . | . . . Parts Fried . | . . . Impact Corruptions . | . . . Robots Melted . | . . . Combat Hostiles . | . . . Parts Melted 4 | . 4 . Heat Transferred 1275 | . 1275 . Parts Sabotaged . | . . . Parts Stolen . | . . . Parts Stripped . | . . . Power Chain Reactions 3 | . 3 . Alert | -11 -10 -10 ------- Run | Yrd Mat Min Maximum Alert Level 1 | . . 1 Low Security (%) 97 | 100 100 66 Level 1 2 | . . 33 Level 2 . | . . . Level 3 . | . . . Level 4 . | . . . Level 5 . | . . . High Security . | . . . Max Security . | . . . Peak Influence 295 | . 190 295 Initial 48 | . . 48 Average 65 | . 70 128 Influence Increases 674 | . 397 277 Destroy 0b10 Robot/C 340 | . 280 60 Destroy 0b10 Robot/NC 15 | . 15 . Destroy Leader 74 | . 64 10 Disable Machine 30 | . 15 15 Destroy Structure 8 | . 8 . Lose Combat Pursuer 15 | . 15 . Miscellaneous 192 | . . 192 Influence Decreases 379 | . 271 108 Entered New Map 78 | . . 78 Time Decay 231 | . 211 20 Lost Part 70 | . 60 10 Squads Dispatched 3 | . 3 . Investigation 1 | . 1 . Extermination . | . . . Reinforcement 2 | . 2 . Assault . | . . . Garrison . | . . . Intercept . | . . . Searches Triggered . | . . . Construction Impeded . | . . . Haulers Reinforced . | . . . Active Scanning Responses . | . . . Cargo Convoy Interrupts . | . . . Stealth | -11 -10 -10 --------- Run | Yrd Mat Min Distress Signals 3 | . 3 . Communications Jammed . | . . . Distress Signals . | . . . Times Spotted 25 | . 20 5 Peak Tracking Total 5 | . 5 3 Tactical Retreats 1 | . 1 . Traps | -11 -10 -10 ------- Run | Yrd Mat Min Traps Triggered 1 | . 1 . Indirectly . | . . . Trap Hack Attempts . | . . . Triggered . | . . . Disarmed . | . . . Reprogrammed . | . . . Reused . | . . . Traps Extracted . | . . . Installed . | . . . Triggered . | . . . Machines | -11 -10 -10 ---------- Run | Yrd Mat Min Machines Disabled 2 | . 1 1 Max in Single Turn 1 | . 1 1 Machines Repaired . | . . . Machines Dismantled . | . . . Machines Sabotaged . | . . . Overloaded Fab Kills . | . . . Hacking | -11 -10 -10 --------- Run | Yrd Mat Min Machines Accessed 3 | . 3 . Terminals 3 | . 3 . Fabricators . | . . . Repair Stations . | . . . Recycling Units . | . . . Scanalyzers . | . . . Garrison Access . | . . . Total Hacks 7 | . 7 . Successful 4 | . 4 . Failed 3 | . 3 . Catastrophic . | . . . Database Lockouts . | . . . Manual 5 | . 5 . Terminals 7 | . 7 . Fabricators . | . . . Repair Stations . | . . . Recycling Units . | . . . Scanalyzers . | . . . Garrison Access . | . . . Terminal Hacks 1 | . 1 . Robot Analysis 1 | . 1 . Fabricator Hacks . | . . . Repair Station Hacks . | . . . Recycling Unit Hacks . | . . . Scanalyzer . | . . . Garrison Access Hacks . | . . . Unauthorized Hacks 3 | . 3 . Terminals 3 | . 3 . Botnet 3 | . 3 . Fabricators . | . . . Repair Stations . | . . . Recycling Units . | . . . Scanalyzers . | . . . Garrison Access . | . . . Data Cores Recovered . | . . . Used . | . . . Hacking Detections 2 | . 2 . Full Trace Events 1 | . 1 . Feedback Events . | . . . Feedback Blocked . | . . . Robot Schematics Acquired . | . . . Robots Built . | . . . Authchips . | . . . Time . | . . . Total Robot Build Rating . | . . . Part Schematics Acquired . | . . . Parts Built . | . . . Authchips . | . . . Time . | . . . Total Part Build Rating . | . . . Part Studies Acquired . | . . . Parts Repaired . | . . . Time . | . . . Parts Recycled . | . . . Recycled Matter . | . . . Retrieved Matter . | . . . Retrieved Components . | . . . Parts Scanalyzed . | . . . Part Schematics Acquired . | . . . Parts Damaged . | . . . Bothacking | -11 -10 -10 ------------ Run | Yrd Mat Min Used RIF Installer . | . . . Robots Hacked . | . . . Non-combat . | . . . Combat . | . . . Robot Hacks Applied . | . . . Relay Couplers Released . | . . . Fabnet Peak Effective % . | . . . Robots Rewired . | . . . Allies Hacked . | . . . Hacks Repelled . | . . . Allies | -11 -10 -10 -------- Run | Yrd Mat Min Total Allies . | . . . Largest Group . | . . . Highest-Rated Group . | . . . Highest-Rated Ally . | . . . Total Orders . | . . . Ally Attacks . | . . . Total Damage . | . . . Kills . | . . . Allies Corrupted . | . . . Allies Melted . | . . . X0-1V1 Amusement Gains 4 | . 4 . Average Entertainment 1 | . 3 . Good Acts 8 | . . 8 Bad Acts 9 | . . 9 Intel | -11 -10 -10 ------- Run | Yrd Mat Min Active Infowar (turns) . | . . . Robot Analysis Total 1 | . 1 . Derelict Logs Recovered . | . . . Drone Launches . | . . . Drone Recoveries . | . . . Exploration | -11 -10 -10 ------------- Run | Yrd Mat Min Turns Passed 876 | 115 702 59 Spaces Moved 358 | 57 263 38 Core 8 | 3 5 . Treads 192 | 54 138 . Legs . | . . . Wheels 158 | . 120 38 Hover . | . . . Flight . | . . . Fastest Speed 50 | 50 90 90 Average Speed 128 | 154 127 90 Slowest Speed 160 | 160 160 90 Overloaded Moves . | . . . Propulsion Burnouts . | . . . Robots Hopped . | . . . Potential Cave-ins . | . . . Cave-ins Triggered . | . . . Exploration Rate (%) 23 | 4 52 14 Regions Visited 2 Branch Regions 1 Pre-discovered Areas . | . . . Known Exits Taken . | . . . Unknown Exits Taken 2 | 1 1 . Scrap Searched . | . . . Spaces Dug . | . . . Terrain Destroyed 6 | . 6 . Melee . | . . . Projectile . | . . . AOE 6 | . 6 . Terrain Rammed . | . . . Walls Destroyed . | . . . Machines Disabled . | . . . Actions | -11 -10 -10 --------- Run | Yrd Mat Min Total 665 | 81 535 49 Wait 216 | 14 202 . Move 356 | 56 262 38 Hop . | . . . Pick Up 11 | 5 6 . Fast Attach 9 | 6 3 . Attach 5 | . 5 . Detach 1 | . 1 . Swap 1 | . 1 . Drop 1 | . 1 . Fire 65 | . 54 11 Melee . | . . . Ram . | . . . Kick . | . . . Crush . | . . . Escape Stasis . | . . . Rewire . | . . . Trap . | . . . Miscellaneous . | . . . Route ------- -11/Scrapyard -10/Materials (discovered 3 exits: [*Mat] / [*Min] / [*Sub]) -10/Mines (discovered 2 exits: [*Mat] / Exi) History --------- Turn | Location | Event 3 | -11/Scrapyard | Discovered new exit (range 16) 116 | -11/Scrapyard | Entered Materials 304 | -10/Materials | Build established: Mutant 406 | -10/Materials | Discovered new exit (range 3) 491 | -10/Materials | Discovered new exit (range 16) 600 | -10/Materials | Core integrity fell below 50% 626 | -10/Materials | Destroyed 7 combat bots 634 | -10/Materials | Lost 4 parts (1p2n1w) 723 | -10/Materials | Discovered new exit (range 6) 775 | -10/Materials | Prayed at D.C.S.S. Altar Unit 818 | -10/Materials | Entered Mines 819 | -10/Mines | Inventory capacity permanently improved by X0-1V1 (+1; -100 max core) 828 | -10/Mines | Core integrity restored by X0-1V1 (+31) 834 | -10/Mines | Identified exit to Exiles 834 | -10/Mines | X0-1V1 revealed exit location to -10/Exiles 839 | -10/Mines | X0-1V1 vaporized surrounding terrain (radius 19) 856 | -10/Mines | Core integrity fell below 20% 857 | -10/Mines | X0-1V1 added 0b10 threat records associated with you (considerable) 866 | -10/Mines | X0-1V1 mutated your Weapon slot to Utility slot 869 | -10/Mines | Discovered new exit (range 1) 869 | -10/Mines | X0-1V1 sent you into danger 877 | -10/Mines | Destroyed by G-34 Mercenary with Small Laser Last Messages --------------- X0-1V1 uses you as a vessel of destruction. S-10 Pest destroyed. Seismic Survey Station disabled. S-10 Pest destroyed. X0-1V1: "One less obstacle for my toy on its journey to the highest levels of glorious entertainment." X0-1V1: "More threat records for the threat god!" Heat dissipation returns to normal. S-10 Pest destroyed. Lgt. Assault Rifle tossed aside. X0-1V1: "Evolution hits right when you least expect it." (Weapon slot mutated into Utility slot) Sight range returns to normal. EXIT=FOUND X0-1V1: "Enjoy the ride!" X0-1V1 is intrigued. X0-1V1 cackles wildly! Map ----- +----------------------------------------------------+ | | | | | | | | | | | | | | | | | ?????????????????????????????????????????????????? | | ?????????????????????????????????????????????????? | | ?????????????????????????????????????????????????? | | ?????????????????????????????????????????????????? | | ?????????????????????????????????????????????????? | | ?????????????????????????????????????????????????? | | ?????????????????????????????????????????????????? | | ???????????????????????????>?????????????????????? | | ?????????????????????????????????????????????????? | | ?????????????????????????????????????????????????? | | ?????????????????????????????????????????????????? | | ???????????????????????????##????????????????????? | | ??????????????##??????????? #????????????????????? | | ?????????????? #??????????? #????????????????????? | | ?????????? #? #???????#### #????????????????????? | | ????????? ?? #??????## ###??????????????????? | | ?#?????? ### ??###### #??????????????????? | | # ###### ## k k kgg @ #??????????????????? | | " ## #??####### < ##??????????????????? | | " ## ##???????### ##???????????????????? | | """ " "" #?????????####????????????????????? | | " " "" #?????????????????????????????????? | | " " ##?????????????????????????????????? | | [ """" "#?????????????????????????????????? | | " ""#????????????????????????????????? | | % "" ""????????????????????????????????? | | " "????????????????????????????????? | | " """????????????????????????????????? | | " " ????????????????????????????????? | | " " ?????????????????????????????????? | | %= " " ?????????????????????????????????? | | "="""""""["" "??????????????????????????????????? | | " "" *% "??????????????????????????????????? | | " "" """"="""""??????????????????????????????????? | | " "" " ???????????????????????????????????? | | " "" " ???????????????????????????????????? | | " ????????????????????????????????????? | | """""""" ????????????????????????????????????? | | " "" ""??????????????????????????????????????? | | " "" ????????????????????????????????????????? | | """ ?????????????????????????????????????????? | | ?????????????????????????????????????????? | +----------------------------------------------------+ Best States ------------- Heat Dissipation 35 Energy Generation 10 Energy Capacity 1225 Matter Stores 300 Matter Capacity 300 Sight Range 16 Terrain Scan Density 10 Evasion (%) 42 Recoil Reduction 2 Item Schematics ----------------- None Robot Schematics ------------------ None Fabricated ------------ Nothing Repaired ---------- Nothing Studied --------- None Alien Tech Used ----------------- None Achievements -------------- None Challenges ------------ None Game ------ Seed ProjectionAuthchipClaymores Manual? 0 Play Time 00:06:40 Cumulative 118.0 hours Start 2026.08.26 @ 21:24:09 End 2026.08.26 @ 21:30:00 Sessions 1 Manual Loads 0 Difficulty Rogue Special Mode None Game No. 145 Rogue 145 Adventurer 0 Explorer 0 Win Type - Total 1 Types 1/0/0/0/0/0/0/0/0/0 Lore% 74 Gallery% 57 Achievement% 44 Wizard Run 0 Options --------- Layout 1 ASCII 0 Keyboard 0 Movement Mouse Keybinds 0 Fullscreen 2 Font 24/Smallcaps Map View 50x35 Zoom Use 0% Tactical HUD 0 Map Filters NONE Filters NONE Steam 1 RUN: 9821e84a-d7ea-4848-858f-2b97a0cb39cb